fUST/lending_fUST_20250819
["ID","MTS","AMOUNT","RATE_DAILY","PERIOD"]
[380099891,1755542808825,150.5,0.000219,120]
[380099892,1755542809272,150.5,0.0002189,120]
[380099893,1755542809710,150.5,0.0002467,120]
[380099894,1755542810353,150.5,0.0002466,120]
[380099895,1755542810676,153.17,0.0002465,120]
[380099899,1755542851242,200.0,0.00025671,120]
[380099912,1755542911333,200.0,0.00028422,120]
[380099918,1755542946102,-1200.0,0.00019174,2]
[380099919,1755542946124,-1200.0,0.00019174,2]
[380099920,1755542946144,-300.0,0.00019174,2]
[380099921,1755542946164,-3564.0779985,0.00019175,3]
[380099922,1755542949091,-1479.50127542,0.00019175,3]
[380099923,1755542950114,-11156.52941566,0.00019175,3]
[380099924,1755542950135,-215.75323784,0.00019175,3]
[380099925,1755542950158,-375.82681177,0.00019175,3]
[380099926,1755542950179,-528.58062739,0.00019175,3]
[380099927,1755542950201,-417.15472785,0.00019175,3]
[380099928,1755542950223,-460.0,0.00019178,2]
[380099929,1755542950244,-463.66434487,0.00019178,2]
[380099930,1755542950265,-480.0,0.00019178,2]
[380099931,1755542950286,-360.0,0.00019178,2]
[380099932,1755542950305,-480.0,0.00019178,2]
[380099933,1755542950326,-607.12,0.00019178,2]
[380099934,1755542950347,-480.0,0.00019178,2]
[380099935,1755542950368,-440.54729868,0.00019178,2]
[380099936,1755542950388,-139.73056626,0.00019178,2]
[380099938,1755542965148,-320.79441607,0.00019178,2]
[380099939,1755542965170,-460.82993709,0.00019178,2]
[380099940,1755542965191,-480.0,0.00019178,2]
[380099941,1755542965211,-480.0,0.00019178,2]
[380099942,1755542965233,-460.0,0.00019178,2]
[380099943,1755542965253,-480.0,0.00019178,2]
[380099944,1755542965275,-480.0,0.00019178,2]
[380099945,1755542965296,-480.0,0.00019178,2]
[380099946,1755542965318,-480.0,0.00019178,2]
[380099947,1755542965340,-480.0,0.00019178,2]
[380099948,1755542965362,-480.0,0.00019178,2]
[380099949,1755542965384,-480.0,0.00019178,2]
[380099950,1755542965405,-480.0,0.00019178,2]
[380099951,1755542965435,-480.0,0.00019178,2]
[380099952,1755542965457,-480.0,0.00019178,2]
[380099953,1755542965480,-480.0,0.00019178,2]
[380099954,1755542965502,-480.0,0.00019178,2]
[380099955,1755542965524,-480.0,0.00019178,2]
[380099956,1755542965545,-480.0,0.00019178,2]
[380099957,1755542965567,-480.0,0.00019178,2]
[380099958,1755542965588,-437.94,0.00019178,2]
[380099959,1755542965609,-480.0,0.00019178,2]
[380099960,1755542965630,-480.0,0.00019178,2]
[380099961,1755542965649,-480.0,0.00019178,2]
[380099962,1755542965669,-479.999999,0.00019178,2]
[380099963,1755542965688,-480.0,0.00019178,2]
[380099964,1755542965709,-480.0,0.00019178,2]
[380099965,1755542965729,-480.0,0.00019178,2]
[380099966,1755542965750,-480.0,0.00019178,2]
[380099967,1755542965771,-480.0,0.00019178,2]
[380099968,1755542965791,-566.82692408,0.00019178,2]
[380099969,1755542965812,-480.0,0.00019178,2]
[380099970,1755542965832,-568.3983362,0.00019178,2]
[380099971,1755542965854,-480.0,0.00019178,2]
[380099972,1755542965875,-480.0,0.00019178,2]
[380099973,1755542965895,-356.48,0.00019178,2]
[380099974,1755542965916,-480.0,0.00019178,2]
[380099975,1755542965937,-501.96,0.00019178,2]
[380099976,1755542965959,-412.5,0.00019178,2]
[380099977,1755542965979,-480.0,0.00019178,2]
[380099978,1755542966000,-1055.24,0.00019178,2]
[380099979,1755542966020,-480.0,0.00019178,2]
[380099980,1755542966042,-480.0,0.00019178,2]
[380099981,1755542966063,-480.0,0.00019178,2]
[380099982,1755542966084,-480.0,0.00019178,2]
[380099983,1755542966105,-480.0,0.00019178,2]
[380099984,1755542966127,-480.0,0.00019178,2]
[380099985,1755542966148,-712.4,0.00019178,2]
[380099986,1755542966170,-480.0,0.00019178,2]
[380099987,1755542966191,-480.0,0.00019178,2]
[380099988,1755542966212,-431.18875593,0.00019178,2]
[380099989,1755542966234,-753.03,0.00019178,2]
[380099990,1755542966255,-249.41177036,0.00019178,2]
[380099991,1755542966277,-1652.71,0.00019178,2]
[380099992,1755542966297,-510.33841159,0.00019178,2]
[380099993,1755542966318,-541.36,0.00019178,2]
[380099994,1755542966340,-604.19,0.00019178,2]
[380099995,1755542966362,-898.53,0.00019178,2]
[380099996,1755542966383,-480.0,0.00019178,2]
[380099997,1755542966405,-480.0,0.00019178,2]
[380099998,1755542966429,-480.0,0.00019178,2]
[380099999,1755542966450,-480.0,0.00019178,2]
[380100000,1755542966472,-480.0,0.00019178,2]
[380100001,1755542966493,-480.0,0.00019178,2]
[380100002,1755542966516,-1512.46,0.00019178,2]
[380100003,1755542966537,-480.0,0.00019178,2]
[380100004,1755542966557,-480.0,0.00019178,2]
[380100005,1755542966577,-486.34224013,0.00019178,2]
[380100006,1755542966598,-480.0,0.00019178,2]
[380100007,1755542966619,-480.0,0.00019178,2]
[380100008,1755542966643,-480.0,0.00019178,2]
[380100009,1755542966665,-563.03,0.00019178,2]
[380100010,1755542966684,-480.0,0.00019178,2]
[380100011,1755542966705,-480.0,0.00019178,2]
[380100012,1755542966724,-480.0,0.00019178,2]
[380100013,1755542966744,-598.59121376,0.00019178,2]
[380100014,1755542966764,-1573.13,0.00019178,2]
[380100015,1755542966784,-480.0,0.00019178,2]
[380100016,1755542966807,-480.0,0.00019178,2]
[380100017,1755542966827,-831.53,0.00019178,2]
[380100018,1755542966848,-480.0,0.00019178,2]
[380100019,1755542966868,-480.0,0.00019178,2]
[380100020,1755542966888,-480.0,0.00019178,2]
[380100021,1755542966909,-480.0,0.00019178,2]
[380100022,1755542966929,-1940.21,0.00019178,2]
[380100023,1755542966950,-571.55534114,0.00019178,2]
[380100024,1755542966970,-717.24,0.00019178,2]
[380100025,1755542966989,-480.0,0.00019178,2]
[380100026,1755542967009,-431.97180508,0.00019178,2]
[380100027,1755542967028,-480.0,0.00019178,2]
[380100028,1755542967049,-420.0,0.00019178,2]
[380100029,1755542967069,-480.0,0.00019178,2]
[380100030,1755542967090,-1612.4,0.00019178,2]
[380100031,1755542967110,-480.0,0.00019178,2]
[380100032,1755542967130,-480.0,0.00019178,2]
[380100033,1755542967152,-2859.56,0.00019178,2]
[380100034,1755542967174,-1275.93,0.00019178,2]
[380100035,1755542967194,-306.60278678,0.00019178,2]
[380100036,1755542967214,-480.0,0.00019178,2]
[380100037,1755542967234,-643.59,0.00019178,2]
[380100038,1755542967255,-2502.0,0.00019178,2]
[380100039,1755542967274,-480.0,0.00019178,2]
[380100040,1755542967294,-1098.38,0.00019178,2]
[380100041,1755542967314,-696.91,0.00019178,2]
[380100042,1755542967334,-349.63532197,0.00019178,2]
[380100043,1755542967355,-480.0,0.00019178,2]
[380100044,1755542967374,-480.0,0.00019178,2]
[380100045,1755542967395,-1188.3,0.00019178,2]
[380100046,1755542967415,-771.66,0.00019178,2]
[380100047,1755542967438,-480.0,0.00019178,2]
[380100048,1755542967459,-480.0,0.00019178,2]
[380100049,1755542967480,-480.0,0.00019178,2]
[380100050,1755542967503,-715.57,0.00019178,2]
[380100051,1755542967524,-480.0,0.00019178,2]
[380100052,1755542967545,-480.0,0.00019178,2]
[380100053,1755542967566,-906.38,0.00019178,2]
[380100054,1755542967587,-480.0,0.00019178,2]
[380100055,1755542967608,-480.0,0.00019178,2]
[380100056,1755542967629,-480.0,0.00019178,2]
[380100057,1755542967661,-1587.11,0.00019178,2]
[380100058,1755542967681,-480.0,0.00019178,2]
[380100059,1755542967701,-480.0,0.00019178,2]
[380100060,1755542967721,-480.0,0.00019178,2]
[380100061,1755542967742,-480.0,0.00019178,2]
[380100062,1755542967762,-480.0,0.00019178,2]
[380100063,1755542967782,-480.0,0.00019178,2]
[380100064,1755542967802,-480.0,0.00019178,2]
[380100065,1755542967824,-485.66,0.00019178,2]
[380100066,1755542967949,-480.0,0.00019178,2]
[380100067,1755542967970,-1008.14203078,0.00019178,2]
[380100068,1755542971833,200.0,0.00027664,120]
[380100072,1755543022553,200.0,0.00027,120]
[380100073,1755543022941,326.47368,0.000276,120]
[380100080,1755543031992,-300.0,0.00019177,2]
[380100081,1755543032001,-245.18028167,0.00019177,2]
[380100082,1755543032046,-954.81971833,0.00019177,2]
[380100083,1755543032055,-592.8721652,0.00019178,2]
[380100084,1755543032100,-390.91059976,0.00019178,2]
[380100254,1755543036061,1018.55125,0.00027,120]
[380100261,1755543036357,1018.55125,0.000276,120]
[380100264,1755543036684,1018.55125,0.000282,120]
[380100267,1755543039976,-151.24520426,0.00019178,2]
[380100268,1755543039987,-767.58,0.00019178,2]
[380100269,1755543039997,-480.0,0.00019178,2]
[380100270,1755543040006,-22.95789258,0.00019178,2]
[380100271,1755543040082,-457.04210742,0.00019178,2]
[380100272,1755543040092,-509.51,0.00019178,2]
[380100273,1755543040101,-1051.28,0.00019178,2]
[380100274,1755543040111,-480.0,0.00019178,2]
[380100275,1755543040120,-480.0,0.00019178,2]
[380100276,1755543040130,-1527.58,0.00019178,2]
[380100278,1755543040140,-480.0,0.00019178,2]
[380100279,1755543040149,-480.0,0.00019178,2]
[380100280,1755543040158,-480.0,0.00019178,2]
[380100281,1755543040168,-480.0,0.00019178,2]
[380100282,1755543040177,-774.29,0.00019178,2]
[380100283,1755543040187,-480.0,0.00019178,2]
[380100284,1755543040196,-707.36,0.00019178,2]
[380100285,1755543040205,-271.65457796,0.00019178,2]
[380100313,1755543042862,-299.66542204,0.00019178,2]
[380100314,1755543042872,-480.0,0.00019178,2]
[380100315,1755543042882,-480.0,0.00019178,2]
[380100316,1755543042892,-480.0,0.00019178,2]
[380100317,1755543042901,-480.0,0.00019178,2]
[380100318,1755543042911,-480.0,0.00019178,2]
[380100319,1755543042920,-480.0,0.00019178,2]
[380100320,1755543042930,-1685.67,0.00019178,2]
[380100321,1755543042940,-480.0,0.00019178,2]
[380100322,1755543042949,-480.0,0.00019178,2]
[380100323,1755543042959,-1469.44,0.00019178,2]
[380100324,1755543042968,-531.10404115,0.00019216,2]
[380100325,1755543042977,-17842.522448,0.00019216,2]
[380100326,1755543042987,-2029.95991318,0.00019352,2]
[380100327,1755543042996,-502.58,0.00019442,3]
[380100328,1755543043006,-546.36,0.00019452,2]
[380100329,1755543043015,-607.12,0.00019452,2]
[380100330,1755543043025,-480.0,0.00019452,2]
[380100331,1755543043034,-480.0,0.00019452,2]
[380100332,1755543043044,-480.0,0.00019452,2]
[380100333,1755543043053,-480.0,0.00019452,2]
[380100334,1755543043062,-480.0,0.00019452,2]
[380100335,1755543043072,-480.0,0.00019452,2]
[380100336,1755543043081,-480.0,0.00019452,2]
[380100337,1755543043091,-480.0,0.00019452,2]
[380100338,1755543043100,-480.0,0.00019452,2]
[380100339,1755543043110,-480.0,0.00019452,2]
[380100340,1755543043119,-480.0,0.00019452,2]
[380100341,1755543043128,-480.0,0.00019452,2]
[380100342,1755543043138,-480.0,0.00019452,2]
[380100343,1755543043147,-480.0,0.00019452,2]
[380100344,1755543043156,-501.96,0.00019452,2]
[380100345,1755543043166,-480.0,0.00019452,2]
[380100346,1755543043175,-332.22,0.00019452,2]
[380100347,1755543043185,-480.0,0.00019452,2]
[380100348,1755543043194,-480.0,0.00019452,2]
[380100349,1755543043203,-480.0,0.00019452,2]
[380100350,1755543043212,-480.0,0.00019452,2]
[380100351,1755543043222,-480.0,0.00019452,2]
[380100352,1755543043231,-541.36,0.00019452,2]
[380100353,1755543043241,-604.19,0.00019452,2]
[380100354,1755543043250,-898.53,0.00019452,2]
[380100355,1755543043259,-480.0,0.00019452,2]
[380100356,1755543043269,-480.0,0.00019452,2]
[380100357,1755543043278,-286.49670487,0.00019452,2]
[380100358,1755543043287,-480.0,0.00019452,2]
[380100359,1755543043297,-480.0,0.00019452,2]
[380100360,1755543043306,-563.03,0.00019452,2]
[380100361,1755543043315,-566.94,0.00019452,2]
[380100362,1755543043324,-831.53,0.00019452,2]
[380100363,1755543043334,-480.0,0.00019452,2]
[380100364,1755543043343,-480.0,0.00019452,2]
[380100365,1755543043352,-480.0,0.00019452,2]
[380100366,1755543043362,-1940.21,0.00019452,2]
[380100367,1755543043371,-480.0,0.00019452,2]
[380100368,1755543043381,-493.06,0.00019452,2]
[380100369,1755543043390,-480.0,0.00019452,2]
[380100370,1755543043399,-1612.4,0.00019452,2]
[380100371,1755543043409,-480.0,0.00019452,2]
[380100372,1755543043418,-2859.56,0.00019452,2]
[380100373,1755543043429,-1275.93,0.00019452,2]
[380100374,1755543043440,-480.0,0.00019452,2]
[380100375,1755543043450,-2502.0,0.00019452,2]
[380100376,1755543043459,-480.0,0.00019452,2]
[380100377,1755543043468,-1098.38,0.00019452,2]
[380100378,1755543043478,-696.91,0.00019452,2]
[380100379,1755543043487,-480.0,0.00019452,2]
[380100380,1755543043496,-279.91452569,0.00019452,2]
[380100381,1755543043507,-1188.3,0.00019452,2]
[380100382,1755543043516,-771.66,0.00019452,2]
[380100383,1755543043526,-480.0,0.00019452,2]
[380100384,1755543043535,-480.0,0.00019452,2]
[380100385,1755543043544,-480.0,0.00019452,2]
[380100386,1755543043553,-715.57,0.00019452,2]
[380100387,1755543043562,-480.0,0.00019452,2]
[380100388,1755543043572,-480.0,0.00019452,2]
[380100389,1755543043581,-906.38,0.00019452,2]
[380100390,1755543043590,-480.0,0.00019452,2]
[380100391,1755543043600,-165.12824402,0.00019452,2]
[380100392,1755543043609,-480.0,0.00019452,2]
[380100393,1755543043619,-1587.11,0.00019452,2]
[380100394,1755543043628,-480.0,0.00019452,2]
[380100395,1755543043638,-480.0,0.00019452,2]
[380100396,1755543043648,-480.0,0.00019452,2]
[380100397,1755543043657,-480.0,0.00019452,2]
[380100398,1755543043668,-480.0,0.00019452,2]
[380100399,1755543043678,-480.0,0.00019452,2]
[380100400,1755543043686,-485.66,0.00019452,2]
[380100401,1755543043696,-480.0,0.00019452,2]
[380100402,1755543043705,-2143.17,0.00019452,2]
[380100403,1755543043715,-767.58,0.00019452,2]
[380100404,1755543043724,-480.0,0.00019452,2]
[380100405,1755543043733,-480.0,0.00019452,2]
[380100406,1755543043742,-509.51,0.00019452,2]
[380100407,1755543043752,-1051.28,0.00019452,2]
[380100408,1755543043761,-480.0,0.00019452,2]
[380100409,1755543043770,-480.0,0.00019452,2]
[380100410,1755543043779,-1527.58,0.00019452,2]
[380100411,1755543043788,-480.0,0.00019452,2]
[380100412,1755543043798,-480.0,0.00019452,2]
[380100413,1755543043807,-480.0,0.00019452,2]
[380100414,1755543043816,-774.29,0.00019452,2]
[380100415,1755543043825,-480.0,0.00019452,2]
[380100416,1755543043834,-707.36,0.00019452,2]
[380100417,1755543043844,-571.32,0.00019452,2]
[380100418,1755543043854,-480.0,0.00019452,2]
[380100419,1755543043863,-480.0,0.00019452,2]
[380100420,1755543043873,-419.03655572,0.00019452,2]
[380100421,1755543043882,-480.0,0.00019452,2]
[380100422,1755543043891,-480.0,0.00019452,2]
[380100423,1755543043900,-1685.67,0.00019452,2]
[380100424,1755543043909,-480.0,0.00019452,2]
[380100425,1755543043919,-480.0,0.00019452,2]
[380100426,1755543043928,-1469.44,0.00019452,2]
[380100427,1755543043938,-500.0,0.00019452,2]
[380100428,1755543043947,-200.0,0.00019561,20]
[380100429,1755543043956,-200.0,0.00019561,20]
[380100430,1755543043965,-200.0,0.00019561,20]
[380100431,1755543043975,-200.0,0.00019561,20]
[380100432,1755543043984,-200.0,0.00019561,20]
[380100433,1755543043993,-200.0,0.00019561,20]
[380100434,1755543044002,-200.0,0.00019561,20]
[380100435,1755543044011,-200.0,0.00019561,20]
[380100436,1755543044020,-200.0,0.00019561,20]
[380100437,1755543044030,-200.0,0.00019561,20]
[380100438,1755543044039,-600.0,0.00019561,20]
[380100439,1755543044048,-151.0,0.000196,2]
[380100440,1755543044058,-294.96,0.00019667,2]
[380100441,1755543044067,-607.12,0.00019726,2]
[380100442,1755543044076,-480.0,0.00019726,2]
[380100443,1755543044085,-480.0,0.00019726,2]
[380100444,1755543044096,-480.0,0.00019726,2]
[380100445,1755543044106,-183.64378739,0.00019726,2]
[380100446,1755543044116,-480.0,0.00019726,2]
[380100447,1755543044125,-480.0,0.00019726,2]
[380100448,1755543044134,-275.76,0.00019726,2]
[380100449,1755543044144,-480.0,0.00019726,2]
[380100450,1755543044154,-480.0,0.00019726,2]
[380100451,1755543044163,-480.0,0.00019726,2]
[380100452,1755543044173,-480.0,0.00019726,2]
[380100453,1755543044182,-480.0,0.00019726,2]
[380100454,1755543044191,-480.0,0.00019726,2]
[380100456,1755543044200,-480.0,0.00019726,2]
[380100457,1755543044209,-501.96,0.00019726,2]
[380100458,1755543044218,-480.0,0.00019726,2]
[380100459,1755543044227,-480.0,0.00019726,2]
[380100460,1755543044237,-480.0,0.00019726,2]
[380100461,1755543044247,-480.0,0.00019726,2]
[380100462,1755543044257,-480.0,0.00019726,2]
[380100463,1755543044266,-480.0,0.00019726,2]
[380100464,1755543044276,-541.36,0.00019726,2]
[380100465,1755543044285,-604.19,0.00019726,2]
[380100467,1755543044295,-898.53,0.00019726,2]
[380100468,1755543044306,-480.0,0.00019726,2]
[380100469,1755543044315,-479.12715926,0.00019726,2]
[380100470,1755543044324,-480.0,0.00019726,2]
[380100471,1755543044334,-563.03,0.00019726,2]
[380100472,1755543044343,-831.53,0.00019726,2]
[380100473,1755543044352,-480.0,0.00019726,2]
[380100474,1755543044361,-480.0,0.00019726,2]
[380100478,1755543044370,-480.0,0.00019726,2]
[380100479,1755543044486,-1940.21,0.00019726,2]
[380100480,1755543044495,-511.09,0.00019726,2]
[380100481,1755543044506,-480.0,0.00019726,2]
[380100482,1755543044515,-1612.4,0.00019726,2]
[380100483,1755543044524,-480.0,0.00019726,2]
[380100484,1755543044534,-2859.56,0.00019726,2]
[380100485,1755543044543,-1275.93,0.00019726,2]
[380100486,1755543044553,-480.0,0.00019726,2]
[380100487,1755543044562,-2502.0,0.00019726,2]
[380100488,1755543044571,-480.0,0.00019726,2]
[380100489,1755543044581,-1098.38,0.00019726,2]
[380100490,1755543044590,-696.91,0.00019726,2]
[380100491,1755543044599,-480.0,0.00019726,2]
[380100492,1755543044609,-1188.3,0.00019726,2]
[380100493,1755543044618,-771.66,0.00019726,2]
[380100494,1755543044627,-480.0,0.00019726,2]
[380100495,1755543044637,-480.0,0.00019726,2]
[380100496,1755543044646,-715.57,0.00019726,2]
[380100497,1755543044655,-212.82110386,0.00019726,2]
[380100498,1755543044664,-906.38,0.00019726,2]
[380100499,1755543044674,-480.0,0.00019726,2]
[380100500,1755543044684,-1587.11,0.00019726,2]
[380100501,1755543044693,-480.0,0.00019726,2]
[380100502,1755543044703,-480.0,0.00019726,2]
[380100503,1755543044712,-523.34117837,0.00019726,2]
[380100504,1755543044721,-460.0,0.00019726,2]
[380100505,1755543044730,-480.0,0.00019726,2]
[380100506,1755543044740,-485.66,0.00019726,2]
[380100507,1755543044749,-480.0,0.00019726,2]
[380100508,1755543044758,-2143.17,0.00019726,2]
[380100509,1755543044768,-767.58,0.00019726,2]
[380100510,1755543044777,-480.0,0.00019726,2]
[380100511,1755543044786,-480.0,0.00019726,2]
[380100512,1755543044795,-509.51,0.00019726,2]
[380100513,1755543044805,-1051.28,0.00019726,2]
[380100514,1755543044815,-480.0,0.00019726,2]
[380100515,1755543044824,-480.0,0.00019726,2]
[380100516,1755543044834,-1527.58,0.00019726,2]
[380100517,1755543044844,-480.0,0.00019726,2]
[380100518,1755543044853,-480.0,0.00019726,2]
[380100519,1755543044862,-480.0,0.00019726,2]
[380100520,1755543044872,-774.29,0.00019726,2]
[380100521,1755543044881,-480.0,0.00019726,2]
[380100522,1755543044890,-707.36,0.00019726,2]
[380100523,1755543044900,-571.32,0.00019726,2]
[380100524,1755543044909,-480.0,0.00019726,2]
[380100525,1755543044918,-480.0,0.00019726,2]
[380100526,1755543044928,-480.0,0.00019726,2]
[380100527,1755543044938,-1685.67,0.00019726,2]
[380100528,1755543044947,-1469.44,0.00019726,2]
[380100529,1755543044956,-329.74349556,0.00019726,2]
[380100530,1755543044965,-500.0,0.00019973,2]
[380100531,1755543044974,-500.0,0.00019973,2]
[380100532,1755543044984,-607.12,0.0002,2]
[380100533,1755543044993,-480.0,0.0002,2]
[380100534,1755543045002,-198.17598955,0.0002,2]
[380100535,1755543045012,-480.0,0.0002,2]
[380100536,1755543045022,-181.55348345,0.0002,2]
[380100537,1755543045031,-480.0,0.0002,2]
[380100538,1755543045041,-480.0,0.0002,2]
[380100539,1755543045051,-480.0,0.0002,2]
[380100540,1755543045060,-480.0,0.0002,2]
[380100541,1755543045070,-480.0,0.0002,2]
[380100542,1755543045079,-480.0,0.0002,2]
[380100543,1755543045088,-480.0,0.0002,2]
[380100544,1755543045099,-480.0,0.0002,2]
[380100545,1755543045110,-501.96,0.0002,2]
[380100546,1755543045119,-480.0,0.0002,2]
[380100547,1755543045129,-480.0,0.0002,2]
[380100548,1755543045138,-480.0,0.0002,2]
[380100549,1755543045148,-480.0,0.0002,2]
[380100550,1755543045157,-480.0,0.0002,2]
[380100551,1755543045167,-480.0,0.0002,2]
[380100552,1755543045177,-160.0,0.0002,3]
[380100553,1755543045186,-541.36,0.0002,2]
[380100554,1755543045195,-604.19,0.0002,2]
[380100555,1755543045206,-160.0,0.0002,3]
[380100556,1755543045216,-898.53,0.0002,2]
[380100557,1755543045225,-480.0,0.0002,2]
[380100558,1755543045235,-480.0,0.0002,2]
[380100559,1755543045245,-563.03,0.0002,2]
[380100560,1755543045254,-831.53,0.0002,2]
[380100561,1755543045264,-480.0,0.0002,2]
[380100562,1755543045273,-480.0,0.0002,2]
[380100563,1755543045282,-480.0,0.0002,2]
[380100564,1755543045292,-1940.21,0.0002,2]
[380100565,1755543045301,-480.0,0.0002,2]
[380100566,1755543045312,-1612.4,0.0002,2]
[380100567,1755543045321,-480.0,0.0002,2]
[380100568,1755543045332,-2859.56,0.0002,2]
[380100569,1755543045341,-1275.93,0.0002,2]
[380100570,1755543045351,-480.0,0.0002,2]
[380100571,1755543045361,-2502.0,0.0002,2]
[380100572,1755543045370,-480.0,0.0002,2]
[380100574,1755543045381,-1098.38,0.0002,2]
[380100575,1755543045390,-696.91,0.0002,2]
[380100576,1755543045399,-480.0,0.0002,2]
[380100577,1755543045408,-1188.3,0.0002,2]
[380100578,1755543045418,-771.66,0.0002,2]
[380100579,1755543045430,-480.0,0.0002,2]
[380100581,1755543045443,-480.0,0.0002,2]
[380100582,1755543045452,-715.57,0.0002,2]
[380100583,1755543045462,-906.38,0.0002,2]
[380100584,1755543045471,-480.0,0.0002,2]
[380100585,1755543045481,-1587.11,0.0002,2]
[380100586,1755543045490,-480.0,0.0002,2]
[380100588,1755543045499,-287.12,0.0002,2]
[380100589,1755543045510,-485.66,0.0002,2]
[380100590,1755543045520,-185.88,0.0002,2]
[380100591,1755543045529,-2143.17,0.0002,2]
[380100592,1755543045540,-767.58,0.0002,2]
[380100593,1755543045550,-480.0,0.0002,2]
[380100594,1755543045562,-480.0,0.0002,2]
[380100595,1755543045571,-509.51,0.0002,2]
[380100596,1755543045581,-1051.28,0.0002,2]
[380100597,1755543045590,-480.0,0.0002,2]
[380100598,1755543045601,-480.0,0.0002,2]
[380100599,1755543045610,-1527.58,0.0002,2]
[380100600,1755543045620,-480.0,0.0002,2]
[380100601,1755543045630,-480.0,0.0002,2]
[380100602,1755543045640,-322.72648734,0.0002,2]
[380100603,1755543045649,-774.29,0.0002,2]
[380100604,1755543045658,-480.0,0.0002,2]
[380100605,1755543045668,-707.36,0.0002,2]
[380100606,1755543045678,-571.32,0.0002,2]
[380100607,1755543045687,-480.0,0.0002,2]
[380100608,1755543045696,-480.0,0.0002,2]
[380100609,1755543045705,-480.0,0.0002,2]
[380100610,1755543045714,-1685.67,0.0002,2]
[380100611,1755543045724,-151.0,0.000201,3]
[380100612,1755543045733,-230.96798111,0.00020101,2]
[380100613,1755543045742,-160.0,0.00020102,2]
[380100614,1755543045751,-528.58062739,0.00020102,2]
[380100615,1755543045760,-160.0,0.00020102,2]
[380100616,1755543045771,-160.0,0.00020102,2]
[380100617,1755543045780,-215.75323784,0.00020102,2]
[380100618,1755543045790,-160.0,0.00020102,2]
[380100619,1755543045799,-843.81736472,0.00020102,2]
[380100620,1755543045811,-375.82681177,0.00020102,2]
[380100621,1755543045821,-12683.78573522,0.00020102,2]
[380100622,1755543045842,-232.18122251,0.00020102,2]
[380100623,1755543045863,-216.85420361,0.00020102,2]
[380100624,1755543045883,-160.0,0.00020102,2]
[380100625,1755543045904,-160.0,0.00020102,2]
[380100626,1755543045926,-160.0,0.00020102,2]
[380100627,1755543045935,-417.15472785,0.00020102,2]
[380100628,1755543045945,-1000.0,0.00020173,2]
[380100629,1755543045955,-2414.46905382,0.00020173,2]
[380100630,1755543045966,-158.923647,0.00020187,2]
[380100631,1755543045975,-607.12,0.00020273,2]
[380100632,1755543045984,-480.0,0.00020273,2]
[380100633,1755543045994,-480.0,0.00020273,2]
[380100634,1755543046003,-480.0,0.00020273,2]
[380100636,1755543046012,-480.0,0.00020273,2]